[Event "Serbian-ch Semifinal 2024"]
[Site "Paracin"]
[Date "2024.02.09"]
[Round "7.2"]
[White "Kovacevic, Aleksandar"]
[Black "Cabarkapa, Novak"]
[Result "1-0"]
[ECO "B30"]
[WhiteElo "2453"]
[BlackElo "2434"]
[Annotator "TA"]
[PlyCount "80"]
[EventDate "2024.02.04"]
[EventType "swiss"]
[EventCountry "SRB"]
[SourceTitle "playchess.com"]
[Source "ChessBase"]
[SourceQuality "1"]
[TimeControl "40/5400+30:1800+30"]

{[%evp 9,80,13,13,10,11,0,-1,0,12,3,5,5,12,0,0,0,0,0,0,-10,-2,-10,0,-38,45,-17,-18,-2,-1,-9,-9,-16,0,0,0,0,29,39,29,19,22,0,0,0,34,26,30,21,44,56,46,51,58,31,203,206,189,189,214,202,266,202,516,505,500,452,459,0,449,342,1089,1063,6295]} 1. e4 {[%emt 0:00:13]} c5 {[%emt 0:00:04]} 2. Nf3 {[%emt 0:02:38]} Nc6 {[%emt 0:00:10]} 3. Bb5 {[%emt 0:00:07]} e6 {[%emt 0:00:04]} 4. Bxc6 {[%emt 0:00:20]} bxc6 {[%emt 0:00:06]} 5. d3 {[%emt 0:00:07]} Ne7 {[%emt 0:00:06]} 6. Nbd2 {[%emt 0:00:11]} Qc7 {[%emt 0:00:07]} 7. O-O {[%emt 0:08:55]} Ng6 {[%emt 0:10:41]} 8. Re1 {[%emt 0:01:20] The position is equal.} e5 {[%emt 0:01:11]} 9. c3 {[%emt 0:00:22]} Be7 {[%emt 0:10:26]} 10. d4 {[%emt 0:00:46]} cxd4 {[%emt 0:11:35]} 11. cxd4 {[%emt 0:00:03]} d6 {[%emt 0:02:48]} 12. dxe5 {[%emt 0:04:17]} dxe5 {[%emt 0:00:16]} 13. Nc4 {[%emt 0:00:24]} O-O {[%emt 0:01:24]} 14. Bd2 {[%emt 0:03:12]} a5 {[%emt 0:04:12]} 15. Rc1 {[%emt 0:01:48]} Rd8 {[%emt 0:03:34]} 16. Qb3 {[%emt 0:01:48]} Bg4 {[%emt 0:10:32]} ({Better is} 16... Be6 $15) 17. h3 {[%emt 0:20:40]} (17. Nfxe5 $1 $14 Be6 (17... Nxe5 18. Bf4 $16) 18. Nf3) 17... Rdb8 {[%emt 0:03:01]} 18. Qd1 {[%emt 0:02:55]} Be6 {[%emt 0:01:31]} 19. b3 {[%emt 0:00:39]} f6 {[%emt 0:04:30]} 20. Qc2 {[%emt 0:01:27]} Bb4 {[%emt 0:03:10]} 21. Red1 {[%emt 0:04:10]} Bxd2 {[%emt 0:02:17]} 22. Rxd2 {[%emt 0:00:54]} Nf4 {[%emt 0:10:49][%cal Oa5a4]} 23. Ne3 {[%emt 0:16:49][%cal Oe3d5]} Qf7 {[%emt 0:01:06][%cal Oa5a4]} 24. Nh4 {[%emt 0:04:23]} ({Much worse is} 24. Qxc6 Ne2+ (24... Rc8 25. Qxc8+ Bxc8 26. Rd8+ $14) 25. Rxe2 Rc8 $11) 24... g6 {[%emt 0:02:31][%cal Oa5a4] Dodges Nhf5} 25. Rd6 {[%emt 0:02:54][%cal Oc2d2]} (25. Qxc6 $2 {is the wrong capture.} Rc8 $19) 25... c5 {[%emt 0:00:32]} 26. Kh2 {[%emt 0:01:32][%cal Oc2d2]} (26. Qxc5 $2 {loses.} Rc8 27. Rc6 Ne2+ 28. Kh2 Nxc1 29. Qxc1 Qb7 30. Rxc8+ Rxc8 $19) 26... Rd8 {[%emt 0:03:49]} (26... a4 $5) 27. Rxd8+ {[%emt 0:08:12]} Rxd8 {[%emt 0:00:05]} 28. Qxc5 {[%emt 0:00:10]} Rc8 {[%emt 0:02:56]} 29. Qa3 {[%emt 0:00:11] Black must now prevent Rxc8+.} Rxc1 {[%emt 0:00:17]} 30. Qxc1 {[%emt 0:00:02]} Qd7 {[%emt 0:00:48]} 31. Qd1 {[%emt 0:07:07]} Bxh3 $2 {[%emt 0:03:16] [#]} 32. g3 $1 $18 {[%emt 0:00:08]} Nh5 {[%emt 0:00:37]} 33. Qe1 {[%emt 0:01:16]} Be6 {[%emt 0:04:47]} 34. Qxa5 {[%emt 0:00:15]} Qd3 {[%emt 0:01:52]} 35. Qb6 {[%emt 0:00:54]} Bf7 {[%emt 0:00:41]} (35... Ng7 36. b4 Qxe4) 36. Qb8+ {[%emt 0:03:20]} Kg7 {[%emt 0:00:06] [#]} 37. Nef5+ $1 {[%emt 0:00:16][%mdl 512]} gxf5 {[%emt 0:00:06]} 38. Nxf5+ {[%emt 0:00:02]} Kg6 {[%emt 0:00:07] [#]} 39. Qf8 $1 {[%emt 0:00:04][%csl Gf5][%cal Rf8h6]} Kg5 {[%emt 0:02:26]} (39... Qxe4 40. Nh4+ Kg5 41. Qxf7 Kh6 42. Qf8+ Kg5) 40. Qxf7 {[%emt 0:02:08] Threatening mate with Qg8+.} Qxe4 {[%emt 0:00:14] Weighted Error Value: White=0.09 (flawless) /Black=0.34.  Loses game:     	---       	Black=2      Mistake:       	White=1     	Black=3      Inaccurate:     	White=2     	Black=4      OK:         	White=14    	Black=12     Best:        	White=1     	Black=2      Strong:       	White=2     	---} 1-0

[Event "Serbian-ch Semifinal 2024"]
[Site "Paracin"]
[Date "2024.02.09"]
[Round "7.3"]
[White "Atalik, Suat"]
[Black "Tilicheev, Viacheslav"]
[Result "1-0"]
[ECO "D46"]
[WhiteElo "2439"]
[BlackElo "2487"]
[Annotator "TA"]
[PlyCount "59"]
[EventDate "2024.02.04"]
[EventType "swiss"]
[EventCountry "SRB"]
[SourceTitle "playchess.com"]
[Source "ChessBase"]
[SourceQuality "1"]
[TimeControl "40/5400+30:1800+30"]

{[%evp 21,59,0,16,25,22,22,21,15,24,17,20,15,36,0,14,6,14,25,29,0,0,0,0,0,54,20,29,27,40,45,49,64,50,54,187,192,183,190,349,336]} 1. d4 {[%emt 0:00:05]} d5 {[%emt 0:00:07]} 2. c4 {[%emt 0:00:30]} e6 {[%emt 0:00:09]} 3. Nc3 {[%emt 0:00:43]} c6 {[%emt 0:00:07]} 4. e3 {[%emt 0:00:23]} Nf6 {[%emt 0:00:29]} 5. Nf3 {[%emt 0:00:46]} Nbd7 {[%emt 0:00:23]} 6. Qc2 {[%emt 0:00:58]} Bd6 {[%emt 0:00:13]} 7. Bd3 {[%emt 0:01:16]} O-O {[%emt 0:00:19]} 8. O-O {[%emt 0:00:28]} dxc4 {[%emt 0:00:07]} 9. Bxc4 {[%emt 0:00:05]} b5 {[%emt 0:00:08]} 10. Bd3 {[%emt 0:00:39]} Bb7 {[%emt 0:00:44]} 11. a3 {[%emt 0:01:36]} a5 {[%emt 0:15:57]} 12. e4 {[%emt 0:01:10] Hoping for e5.} e5 {[%emt 0:00:13]} 13. dxe5 {[%emt 0:02:32]} Nxe5 {[%emt 0:00:07]} 14. Nxe5 {[%emt 0:00:06] The position is equal.} Bxe5 {[%emt 0:00:07]} 15. h3 {[%emt 0:00:21]} Re8 {[%emt 0:05:01]} 16. Be3 {[%emt 0:02:17]} Qe7 {[%emt 0:06:47]} 17. f3 {[%emt 0:04:34]} Rad8 {[%emt 0:01:36]} 18. Rad1 {[%emt 0:07:12]} Bxc3 {[%emt 0:00:46]} 19. Qxc3 {[%emt 0:01:34]} Nd5 {[%emt 0:00:08]} 20. exd5 {[%emt 0:12:26]} Qxe3+ {[%emt 0:00:06]} 21. Kh1 {[%emt 0:00:03]} Qb6 {[%emt 0:19:17]} ({Of course not} 21... cxd5 $6 22. Qxa5 Bc6 23. Rfe1 $16 (23. Bxb5 Bxb5 24. Qxb5 Qe2 $16)) (21... Rxd5 $2 22. Rfe1 $18) 22. d6 {[%emt 0:04:08][%cal Od6d7]} Bc8 {[%emt 0:01:08]} (22... Re6 $1 $11) 23. b4 {[%emt 0:05:17]} axb4 {[%emt 0:00:05]} 24. axb4 {[%emt 0:00:04]} Re6 {[%emt 0:07:30]} 25. Qc5 $36 {[%emt 0:04:06][%mdl 2048] White is pushing.} Qxc5 {[%emt 0:00:09]} 26. bxc5 {[%emt 0:00:05]} Re5 {[%emt 0:00:09]} 27. Rc1 {[%emt 0:02:04]} Bf5 {[%emt 0:00:12] [#]} (27... Kf8 $14) 28. Bxf5 $1 $18 {[%emt 0:01:09]} Rxf5 {[%emt 0:00:06] [#]} 29. Rfe1 {[%emt 0:00:24] Dodges Re5} ({But not} 29. Rfd1 $6 f6 $14) 29... b4 $2 {[%emt 0:04:15]} (29... Rd5 {might work better.} 30. Re7 h5) 30. Re4 {[%emt 0:03:35] Weighted Error Value: White=0.09 (flawless) /Black=0.34.  Mistake:       	---       	Black=3      Inaccurate:     	White=2     	---        OK:         	White=10    	Black=5      Best:        	---       	Black=3      Strong:       	White=1     	---} 1-0

[Event "Serbian-ch Semifinal 2024"]
[Site "Paracin"]
[Date "2024.02.09"]
[Round "7.4"]
[White "Radovanovic, Nikola"]
[Black "Bryakin, Mikhail"]
[Result "1/2-1/2"]
[ECO "B12"]
[WhiteElo "2446"]
[BlackElo "2479"]
[Annotator "RC"]
[PlyCount "184"]
[EventDate "2024.02.04"]
[EventType "swiss"]
[EventCountry "SRB"]
[SourceTitle "playchess.com"]
[Source "ChessBase"]
[SourceQuality "1"]
[TimeControl "40/5400+30:1800+30"]

1. e4 {[%emt 0:00:03]} c6 {[%emt 0:00:37]} 2. d4 {[%emt 0:00:07]} d5 {[%emt 0:00:05]} 3. e5 {[%emt 0:00:12]} Bf5 {[%emt 0:00:06]} 4. Nf3 {[%emt 0:00:10]} e6 {[%emt 0:00:10]} 5. Be2 {[%emt 0:00:29]} Bb4+ {[%emt 0:00:45]} 6. c3 {[%emt 0:00:46]} Ba5 {[%emt 0:00:06]} 7. O-O {[%emt 0:01:15]} Nd7 {[%emt 0:00:14]} 8. Na3 {[%emt 0:13:28]} Ne7 {[%emt 0:03:34]} 9. Nc2 {[%emt 0:01:33]} O-O {[%emt 0:00:29]} 10. Ne3 {[%emt 0:10:25]} Bc7 {[%emt 0:04:17]} 11. Nxf5 {[%emt 0:03:02]} Nxf5 {[%emt 0:01:39]} 12. Bd3 {[%emt 0:00:51]} f6 {[%emt 0:01:51]} 13. exf6 {[%emt 0:07:39]} Qxf6 {[%emt 0:00:51]} 14. Bg5 {[%emt 0:02:18]} Qf7 {[%emt 0:00:38]} 15. Qe2 {[%emt 0:03:33]} Rae8 {[%emt 0:02:08]} 16. Ne5 {[%emt 0:02:40]} Nxe5 {[%emt 0:03:12]} 17. dxe5 {[%emt 0:00:01]} Bd8 {[%emt 0:05:45]} 18. Bd2 {[%emt 0:00:53]} Kh8 {[%emt 0:05:55]} 19. Kh1 {[%emt 0:03:06]} g6 {[%emt 0:04:44]} 20. f4 {[%emt 0:04:29]} h5 {[%emt 0:00:55]} 21. g3 {[%emt 0:11:37]} Bb6 {[%emt 0:00:51]} 22. c4 {[%emt 0:02:07]} Kg7 {[%emt 0:01:21]} 23. cxd5 {[%emt 0:06:23]} cxd5 {[%emt 0:00:34]} 24. Rac1 {[%emt 0:02:48]} Rc8 {[%emt 0:00:32]} 25. b4 {[%emt 0:05:13]} a6 {[%emt 0:08:47]} 26. Rxc8 {[%emt 0:02:35]} Rxc8 {[%emt 0:53:24]} 27. Rc1 {[%emt 0:00:01]} Rxc1+ {[%emt 0:00:00]} 28. Bxc1 {[%emt 0:00:57]} Qc7 {[%emt 0:00:00]} 29. Qc2 {[%emt 0:04:39]} Qd8 {[%emt 0:00:00]} 30. Kg2 {[%emt 0:01:20]} Ba7 {[%emt 0:00:00]} 31. Kh3 {[%emt 0:03:35]} Ne7 {[%emt 0:00:00]} 32. a4 {[%emt 0:01:19]} Nf5 {[%emt 0:00:00]} 33. b5 {[%emt 0:01:13]} axb5 {[%emt 0:00:00]} 34. axb5 {[%emt 0:00:08]} Bb6 {[%emt 0:00:00]} 35. Ba3 {[%emt 0:01:08]} Ne3 {[%emt 0:00:00]} 36. Qa4 {[%emt 0:04:27]} Ng4 {[%emt 0:00:00]} 37. Kg2 {[%emt 0:00:20]} h4 {[%emt 0:00:00]} 38. h3 {[%emt 0:02:03]} Nf2 {[%emt 0:00:00]} 39. Qc2 {[%emt 0:00:29]} hxg3 {[%emt 0:00:00]} 40. Kxg3 {[%emt 0:00:36]} Nxd3 {[%emt 0:02:21]} 41. Qxd3 {[%emt 0:30:28]} Qc8 {[%emt 0:32:48]} 42. Qb3 {[%emt 0:00:00]} Qd7 {[%emt 0:00:00]} 43. Qb4 {[%emt 0:00:00]} Qf7 {[%emt 0:00:00]} 44. Qe7 {[%emt 0:00:00]} Qxe7 {[%emt 0:00:00]} 45. Bxe7 {[%emt 0:00:00]} Be3 {[%emt 0:00:00]} 46. Kf3 {[%emt 0:00:00]} Bc1 {[%emt 0:00:00]} 47. Bc5 {[%emt 0:00:00]} Bb2 {[%emt 0:00:00]} 48. Be7 {[%emt 0:00:00]} Bc3 {[%emt 0:00:00]} 49. Bg5 {[%emt 0:00:00]} Kf7 {[%emt 0:00:00]} 50. Bd8 {[%emt 0:00:00]} Bb4 {[%emt 0:00:00]} 51. Bb6 {[%emt 0:00:00]} Bc3 {[%emt 0:00:00]} 52. Bd8 {[%emt 0:00:00]} Bb2 {[%emt 0:00:00]} 53. Bb6 {[%emt 0:00:13]} Kg7 {[%emt 0:00:00]} 54. Bd8 {[%emt 0:00:17]} Kh6 {[%emt 0:00:00]} 55. Kg4 {[%emt 0:00:21]} Bd4 {[%emt 0:00:00]} 56. Bg5+ {[%emt 0:00:08]} Kg7 {[%emt 0:00:00]} 57. Kf3 {[%emt 0:00:22]} Bc5 {[%emt 0:00:00]} 58. Ke2 {[%emt 0:01:46]} Kf7 {[%emt 0:00:00]} 59. Bd8 {[%emt 0:03:34]} Ke8 {[%emt 0:04:01]} 60. Ba5 {[%emt 0:00:09]} Bg1 {[%emt 0:00:40]} 61. Kf3 {[%emt 0:00:16]} Kf7 {[%emt 0:00:12]} 62. Bd8 {[%emt 0:01:06]} Bc5 {[%emt 0:00:32]} 63. Ke2 {[%emt 0:00:06]} Kg7 {[%emt 0:00:20]} 64. Bg5 {[%emt 0:00:19]} Bb6 {[%emt 0:00:07]} 65. Kf3 {[%emt 0:00:24]} Kf7 {[%emt 0:00:04]} 66. Bh4 {[%emt 0:00:32]} Ke8 {[%emt 0:00:04]} 67. Be1 {[%emt 0:00:25]} Kd7 {[%emt 0:00:18]} 68. Bb4 {[%emt 0:00:33]} Bd4 {[%emt 0:00:07]} 69. Ba5 {[%emt 0:00:28]} Bb2 {[%emt 0:00:17]} 70. Bb4 {[%emt 0:01:05]} Kc8 {[%emt 0:01:03]} 71. Ba5 {[%emt 0:00:43]} Ba3 {[%emt 0:01:14]} 72. Bc3 {[%emt 0:00:41]} Bc5 {[%emt 0:00:23]} 73. Ba5 {[%emt 0:00:14]} Kd7 {[%emt 0:00:18]} 74. Be1 {[%emt 0:00:18]} Bb6 {[%emt 0:00:35]} 75. Bb4 {[%emt 0:00:23]} Ke8 {[%emt 0:00:14]} 76. Be1 {[%emt 0:00:25]} Bc5 {[%emt 0:00:12]} 77. Ba5 {[%emt 0:00:16]} Kf8 {[%emt 0:00:34]} 78. Bd8 {[%emt 0:00:42]} Kf7 {[%emt 0:00:03]} 79. Ke2 {[%emt 0:00:21]} Bg1 {[%emt 0:01:17]} 80. Kf3 {[%emt 0:00:08]} Kg7 {[%emt 0:00:26]} 81. Bg5 {[%emt 0:00:20]} Bd4 {[%emt 0:00:16]} 82. Ke2 {[%emt 0:00:18]} Bb2 {[%emt 0:00:16]} 83. Kf3 {[%emt 0:00:11]} Ba3 {[%emt 0:00:22]} 84. Ke2 {[%emt 0:00:20]} Bb4 {[%emt 0:00:15]} 85. Kf3 {[%emt 0:00:11]} Kf7 {[%emt 0:00:05]} 86. Bd8 {[%emt 0:00:12]} Kg8 {[%emt 0:00:29]} 87. Bg5 {[%emt 0:00:44]} Kh7 {[%emt 0:00:30]} 88. Ke2 {[%emt 0:00:13]} Bc5 {[%emt 0:00:05]} 89. Kf3 {[%emt 0:00:08]} Bf8 {[%emt 0:00:11]} 90. Ke3 {[%emt 0:00:45]} Kg7 {[%emt 0:01:00]} 91. Kf3 {[%emt 0:00:13]} Kf7 {[%emt 0:00:09]} 92. Bd8 {[%emt 0:00:09]} Bc5 {[%emt 0:00:56]} 1/2-1/2

[Event "Serbian-ch Semifinal 2024"]
[Site "Paracin"]
[Date "2024.02.09"]
[Round "7.5"]
[White "Injac, Teodora"]
[Black "Pap, Misa"]
[Result "1/2-1/2"]
[ECO "A35"]
[WhiteElo "2439"]
[BlackElo "2422"]
[Annotator "TA"]
[PlyCount "85"]
[EventDate "2024.02.04"]
[EventType "swiss"]
[EventCountry "SRB"]
[SourceTitle "playchess.com"]
[Source "ChessBase"]
[SourceQuality "1"]
[TimeControl "40/5400+30:1800+30"]

{[%evp 22,85,29,43,40,29,35,25,37,32,28,31,33,12,93,27,69,35,44,37,42,35,43,43,47,1,46,53,54,59,86,77,74,49,77,43,124,106,112,114,169,152,169,138,204,215,222,204,199,175,219,160,303,286,323,308,336,87,116,96,110,88,106,0,78,22]} 1. Nf3 {[%emt 0:00:03]} c5 {[%emt 0:06:15]} 2. c4 {[%emt 0:00:28]} Nc6 {[%emt 0:00:04]} 3. Nc3 {[%emt 0:00:21]} g6 {[%emt 0:00:05]} 4. e3 {[%emt 0:01:43]} Nf6 {[%emt 0:00:04][%cal Bg8f6,Bf6d5,Bd5c3][%mdl 32]} 5. d4 {[%emt 0:00:25]} cxd4 {[%emt 0:00:05]} 6. exd4 {[%emt 0:00:02]} d5 {[%emt 0:00:11]} 7. cxd5 {[%emt 0:01:12]} Nxd5 {[%emt 0:00:05]} 8. Qb3 {[%emt 0:00:48]} Nxc3 {[%emt 0:00:05]} 9. Bc4 {[%emt 0:00:33]} Nd5 {[%emt 0:00:04]} 10. Bxd5 {[%emt 0:00:02]} e6 {[%emt 0:00:06]} 11. Bxc6+ {[%emt 0:00:56]} bxc6 {[%emt 0:00:05]} 12. O-O {[%emt 0:02:14]} f6 {[%emt 0:00:08]} 13. Qe3 {[%emt 0:15:10]} Qd5 {[%emt 0:01:56]} 14. Bd2 {[%emt 0:04:11]} Be7 {[%emt 0:08:09] White has an edge.} 15. a3 {[%emt 0:05:52]} a5 {[%emt 0:00:27] Prevents Bb4.} 16. Rfe1 {[%emt 0:02:02]} O-O {[%emt 0:02:41]} 17. b4 {[%emt 0:05:37]} Bd7 {[%emt 0:10:45]} (17... axb4 $11 {remains equal.} 18. Bxb4 Bxb4 19. axb4 Rb8) 18. h4 {[%emt 0:01:42]} (18. bxa5 $16 c5 19. dxc5) 18... Rab8 {[%emt 0:24:59][%cal Ra5b4] Prevents} 19. Rab1 {[%emt 0:08:52][%cal Ba1b1,Bb1b3,Bb3c3][%mdl 32]} Qf5 {[%emt 0:07:37]} 20. Rb3 {[%emt 0:14:07]} a4 {[%emt 0:01:38]} 21. Rc3 {[%emt 0:00:27]} Rb5 {[%emt 0:00:40]} 22. Qe2 {[%emt 0:11:17]} Kg7 {[%emt 0:09:13]} 23. Nh2 {[%emt 0:04:11]} (23. Re3 $14) 23... Re8 {[%emt 0:09:05]} (23... Qh5 {is interesting.} 24. Qe4 Qf5 25. Qe3 Bd6) 24. Re3 {[%emt 0:04:35][%cal Od4d5] Hoping for d5!} Qd5 {[%emt 0:04:15]} 25. Bc3 {[%emt 0:02:11]} Bd8 {[%emt 0:01:45]} 26. Nf3 {[%emt 0:02:28]} Bb6 {[%emt 0:01:30]} 27. Re4 {[%emt 0:00:34]} Bc7 {[%emt 0:02:26]} 28. Bb2 {[%emt 0:03:04]} h5 {[%emt 0:00:45]} (28... Kg8 $14) 29. Nd2 $16 {[%emt 0:01:22]} Qd6 {[%emt 0:04:30]} 30. g3 {[%emt 0:00:34]} Qd5 {[%emt 0:00:22]} (30... Kh7 $16 {was worth a try.} 31. Re3 f5) 31. Nb1 {[%emt 0:01:03]} Qf5 {[%emt 0:02:57]} 32. Nc3 {[%emt 0:00:16][%csl LRa4,LRb5]} Rd5 {[%emt 0:01:13]} (32... Rbb8 $16 33. Nxa4 Kf7) 33. Nxa4 $18 {[%emt 0:02:00]} Bc8 {[%emt 0:02:50]} 34. Nc5 {[%emt 0:00:29]} Kf7 {[%emt 0:00:00]} 35. Re3 {[%emt 0:01:32]} Qh3 {[%emt 0:00:00]} 36. Qf3 {[%emt 0:02:09] Strongly threatening Ne4.} Re7 {[%emt 0:00:41]} (36... Qg4 $16 {keeps fighting.} 37. Ne4 Qxf3 38. Rxf3 Bd8) 37. Ne4 {[%emt 0:00:47]} Rf5 {[%emt 0:00:01]} 38. Qe2 {[%emt 0:01:57]} Qg4 {[%emt 0:00:40]} 39. Nc5 $2 {[%emt 0:01:53] [#]} (39. Qc2 $18 {has better winning chances.}) 39... g5 {[%emt 0:01:03]} 40. hxg5 {[%emt 0:00:36]} (40. Nxe6 $2 {too greedy.} Qxe2 (40... gxh4 $2 {is the wrong capture.} 41. Nd8+ Kg6 42. Qxg4+ hxg4 43. Rxe7 $18) 41. R1xe2 Rxe6 (41... Bxe6 $2 42. hxg5 Rxg5 43. Rc3 $19) 42. hxg5 fxg5 $19 (42... Rxg5 $2 43. a4 $19)) 40... Rxg5 {[%emt 0:00:27]} 41. Ne4 {[%emt 0:09:21] Really sharp! White is more active.} Rd5 {[%emt 0:04:36]} 42. Nc5 {[%emt 0:11:22]} ({White should play} 42. Kg2 $16) 42... Bb6 {[%emt 0:09:24]} (42... Rg5 $1 $11) 43. Rc1 {[%emt 0:04:53] Weighted Error Value: White=0.29 (precise) /Black=0.32.  Missed win:     	White=1     	---        Mistake:       	White=4     	Black=6      Inaccurate:     	White=2     	Black=5      OK:         	White=7     	Black=7      Best:        	White=1     	---} ({Better is} 43. Qc2 $16 Bxc5 44. dxc5) 1/2-1/2

[Event "Serbian-ch Semifinal 2024"]
[Site "Paracin"]
[Date "2024.02.09"]
[Round "7.6"]
[White "Djordjevic, Vuk"]
[Black "Ratkovic, Milovan"]
[Result "1/2-1/2"]
[ECO "D00"]
[WhiteElo "2367"]
[BlackElo "2396"]
[Annotator "TA"]
[PlyCount "82"]
[EventDate "2024.02.04"]
[EventType "swiss"]
[EventCountry "SRB"]
[SourceTitle "playchess.com"]
[Source "ChessBase"]
[SourceQuality "1"]
[TimeControl "40/5400+30:1800+30"]

{[%evp 9,82,0,1,-12,-1,-14,-14,-14,0,1,14,-16,-14,-2,0,0,0,-4,-10,-17,13,31,27,0,0,0,0,-10,0,0,0,0,0,0,0,0,0,0,0,0,0,0,0,0,-8,-8,18,-8,-8,-8,0,-8,-14,-8,-13,-6,-8,-26,-14,-20,-29,-46,-56,-48,0,0,-3,-4,-5,-5,-5,-16,0,0,0]} 1. d4 {[%emt 0:03:54]} d5 {[%emt 0:00:39]} 2. Bf4 {[%emt 0:00:31]} Nf6 {[%emt 0:02:54]} 3. e3 {[%emt 0:00:21]} e6 {[%emt 0:00:32]} 4. Nd2 {[%emt 0:00:39]} Bd6 {[%emt 0:00:38]} 5. Bg3 {[%emt 0:00:56]} c5 {[%emt 0:01:17]} 6. c3 {[%emt 0:00:40]} Qc7 {[%emt 0:00:52]} 7. dxc5 {[%emt 0:04:35]} Qxc5 {[%emt 0:03:56]} 8. Bd3 {[%emt 0:06:49]} Bxg3 {[%emt 0:09:38]} 9. hxg3 {[%emt 0:00:17]} Nc6 {[%emt 0:00:46]} 10. Qe2 {[%emt 0:06:41]} e5 {[%emt 0:05:24]} 11. e4 {[%emt 0:00:50]} Bg4 {[%emt 0:09:34]} 12. Ngf3 {[%emt 0:18:07]} O-O-O {[%emt 0:03:26]} 13. O-O {[%emt 0:02:58]} Kb8 {[%emt 0:01:24]} 14. Nb3 {[%emt 0:10:54]} Qe7 {[%emt 0:05:26]} 15. exd5 {[%emt 0:05:28]} Rxd5 {[%emt 0:16:58]} 16. Bc4 {[%emt 0:14:17]} Rd6 {[%emt 0:04:19] [#] Strongly threatening ...e4.} 17. Qe3 {[%emt 0:00:57]} Nd5 {[%emt 0:15:38][%cal Bf6d5,Bd5b6,Bb6a4][%mdl 32]} 18. Qg5 {[%emt 0:02:01]} Bxf3 {[%emt 0:02:13]} 19. Qxe7 {[%emt 0:00:51]} (19. Qxg7 Qe8 20. gxf3 Rg8 (20... Rg6 21. Qxh8 Qxh8 22. Bxd5 $17) 21. Qxh7 Rh8 $19) 19... Ncxe7 {[%emt 0:00:41]} 20. gxf3 {[%emt 0:00:08]} Rc8 {[%emt 0:00:17]} 21. Be2 {[%emt 0:01:15]} Nb6 {[%emt 0:01:15]} 22. Rfe1 {[%emt 0:03:02]} f6 {[%emt 0:02:58]} 23. Rac1 {[%emt 0:03:46]} Na4 {[%emt 0:01:36]} 24. Rc2 {[%emt 0:01:00]} a6 {[%emt 0:02:06]} 25. f4 {[%emt 0:07:11]} exf4 {[%emt 0:03:16]} 26. Bxa6 {[%emt 0:00:40] [#] Threatens to win with Bb5.} Nf5 {[%emt 0:00:50]} 27. Be2 {[%emt 0:02:09]} Re6 {[%emt 0:04:27] White must now prevent ...f3.} 28. Rf1 {[%emt 0:01:23]} fxg3 {[%emt 0:00:40]} 29. Bg4 {[%emt 0:00:14]} Re5 {[%emt 0:00:42]} 30. Bxf5 {[%emt 0:01:53]} Rxf5 {[%emt 0:00:06]} 31. fxg3 {[%emt 0:00:05]} Rg5 {[%emt 0:00:23]} 32. Kh2 {[%emt 0:01:09]} Re8 {[%emt 0:00:45]} 33. Rf3 {[%emt 0:00:47]} Nb6 {[%emt 0:00:31]} 34. Nd4 {[%emt 0:00:23]} Nc4 {[%emt 0:00:18] ...Rh5+ would now be deadly.} 35. b3 {[%emt 0:00:35]} Ne5 {[%emt 0:00:12]} 36. Rf4 {[%emt 0:00:32]} Nd3 {[%emt 0:00:53]} 37. Rf5 {[%emt 0:00:29] The position is equal.} Rxf5 {[%emt 0:00:49]} 38. Nxf5 {[%emt 0:00:06]} g6 {[%emt 0:00:04]} 39. Nd4 {[%emt 0:00:53]} f5 {[%emt 0:00:55]} 40. Rd2 {[%emt 0:00:30]} Nc5 {[%emt 0:00:37]} 41. Nb5 {[%emt 0:06:13]} b6 {[%emt 0:08:57] Weighted Error Value: White=0.05 (flawless) /Black=0.06 (flawless) .  Inaccurate:     	White=3     	Black=3      OK:         	White=16    	Black=17     Best:        	White=1     	---} 1/2-1/2